[Event "Charlotte Fall IM-D 2023"]
[Site "Charlotte"]
[Date "2023.11.20"]
[Round "6.3"]
[White "Karthik, Advaith"]
[Black "Leiva, Gianmarco"]
[Result "0-1"]
[ECO "E53"]
[WhiteElo "2156"]
[BlackElo "2403"]
[Annotator "RC"]
[PlyCount "80"]
[EventDate "2023.11.17"]
[EventType "tourn"]
[EventCountry "USA"]
[SourceTitle "playchess.com"]
[Source "ChessBase"]
[SourceQuality "1"]
[TimeControl "5400+30"]

1. d4 {[%emt 0:08:38]} Nf6 {[%emt 0:07:18]} 2. c4 {[%emt 0:00:20]} e6 {[%emt 0:00:36]} 3. Nc3 {[%emt 0:00:36]} Bb4 {[%emt 0:00:09]} 4. e3 {[%emt 0:00:09]} O-O {[%emt 0:01:22]} 5. Nf3 {[%emt 0:00:48]} c5 {[%emt 0:03:08]} 6. Bd3 {[%emt 0:00:49]} d5 {[%emt 0:03:28]} 7. cxd5 {[%emt 0:02:10]} cxd4 {[%emt 0:00:20]} 8. exd4 {[%emt 0:00:13]} Nxd5 {[%emt 0:00:12]} 9. O-O {[%emt 0:00:21]} Nc6 {[%emt 0:00:26]} 10. Bc2 {[%emt 0:02:51]} Be7 {[%emt 0:04:46]} 11. a3 {[%emt 0:01:18]} Nxc3 {[%emt 0:04:54]} 12. bxc3 {[%emt 0:00:38]} Bf6 {[%emt 0:02:32]} 13. Qe2 {[%emt 0:02:02]} g6 {[%emt 0:08:07]} 14. Qe4 {[%emt 0:06:04]} Bd7 {[%emt 0:13:47]} 15. h4 {[%emt 0:02:36]} Re8 {[%emt 0:02:51]} 16. Bg5 {[%emt 0:01:12]} Bxg5 {[%emt 0:11:21]} 17. Nxg5 {[%emt 0:04:09]} Qf6 {[%emt 0:00:00]} 18. Qg4 {[%emt 0:02:54]} Qg7 {[%emt 0:07:46]} 19. Qg3 {[%emt 0:16:42]} Ne7 {[%emt 0:08:03]} 20. Rfe1 {[%emt 0:12:18]} Nf5 {[%emt 0:05:38]} 21. Bxf5 {[%emt 0:04:11]} gxf5 {[%emt 0:03:14]} 22. c4 {[%emt 0:11:11]} f6 {[%emt 0:05:44]} 23. Nf3 {[%emt 0:00:12]} Qxg3 {[%emt 0:01:00]} 24. fxg3 {[%emt 0:00:02]} Rac8 {[%emt 0:01:55]} 25. Rac1 {[%emt 0:00:09]} Rc7 {[%emt 0:00:27]} 26. Kf2 {[%emt 0:04:45]} Kf7 {[%emt 0:00:27]} 27. Re3 {[%emt 0:04:33]} Bc6 {[%emt 0:00:06]} 28. Rec3 {[%emt 0:02:53]} Rec8 {[%emt 0:00:02]} 29. Ke3 {[%emt 0:01:15]} Bd5 {[%emt 0:01:07]} 30. c5 {[%emt 0:00:53]} Rg8 {[%emt 0:01:53]} 31. Kf2 {[%emt 0:00:08]} Ke8 {[%emt 0:00:31]} 32. Ne1 {[%emt 0:02:31]} Rg4 {[%emt 0:00:41]} 33. Rd1 {[%emt 0:04:24]} Rcg7 {[%emt 0:00:50]} 34. Re3 {[%emt 0:00:22]} Kd7 {[%emt 0:00:47]} 35. Rd2 {[%emt 0:01:48]} Kc7 {[%emt 0:00:42]} 36. Rd1 {[%emt 0:00:21]} f4 {[%emt 0:00:36]} 37. gxf4 {[%emt 0:00:02]} Rxf4+ {[%emt 0:00:04]} 38. Nf3 {[%emt 0:00:04]} Rfg4 {[%emt 0:00:03]} 39. Kf1 {[%emt 0:00:44]} Rxg2 {[%emt 0:00:47]} 40. Rde1 {[%emt 0:00:21]} Bc4+ {[%emt 0:00:15]} 0-1

[Event "Charlotte Fall IM-D 2023"]
[Site "Charlotte"]
[Date "2023.11.20"]
[Round "6.4"]
[White "Matta, Nicholas"]
[Black "Andrianov, Nikolay"]
[Result "1/2-1/2"]
[ECO "E20"]
[WhiteElo "2287"]
[BlackElo "1816"]
[Annotator "RC"]
[PlyCount "64"]
[EventDate "2023.11.17"]
[EventType "tourn"]
[EventCountry "USA"]
[SourceTitle "playchess.com"]
[Source "ChessBase"]
[SourceQuality "1"]
[TimeControl "5400+30"]

1. d4 {[%emt 0:02:36]} Nf6 {[%emt 0:00:07]} 2. c4 {[%emt 0:01:03]} e6 {[%emt 0:00:26]} 3. Nc3 {[%emt 0:01:45]} Bb4 {[%emt 0:00:54]} 4. g3 {[%emt 0:00:50]} c5 {[%emt 0:01:41]} 5. Nf3 {[%emt 0:04:51]} cxd4 {[%emt 0:00:43]} 6. Nxd4 {[%emt 0:00:39]} O-O {[%emt 0:00:35]} 7. Bg2 {[%emt 0:01:20]} d5 {[%emt 0:00:47]} 8. cxd5 {[%emt 0:06:36]} Nxd5 {[%emt 0:00:19]} 9. Bd2 {[%emt 0:02:28]} Bxc3 {[%emt 0:00:57]} 10. bxc3 {[%emt 0:01:06]} e5 {[%emt 0:01:49]} 11. Nb3 {[%emt 0:01:16]} Nc6 {[%emt 0:00:31]} 12. O-O {[%emt 0:02:28]} Nde7 {[%emt 0:15:14]} 13. Qc1 {[%emt 0:09:59]} Qc7 {[%emt 0:02:21]} 14. f4 {[%emt 0:05:46]} Be6 {[%emt 0:08:58]} 15. Nc5 {[%emt 0:07:02]} Bc4 {[%emt 0:01:08]} 16. f5 {[%emt 0:00:40]} f6 {[%emt 0:02:26]} 17. Rf2 {[%emt 0:06:58]} Rad8 {[%emt 0:06:58]} 18. g4 {[%emt 0:02:15]} Na5 {[%emt 0:08:16]} 19. Be3 {[%emt 0:04:16]} b6 {[%emt 0:02:16]} 20. Ne4 {[%emt 0:00:11]} Nd5 {[%emt 0:14:12]} 21. g5 {[%emt 0:01:53]} Nxe3 {[%emt 0:02:17]} 22. Qxe3 {[%emt 0:00:12]} Bd5 {[%emt 0:01:59]} 23. Kh1 {[%emt 0:11:19]} Nc4 {[%emt 0:01:59]} 24. Qg3 {[%emt 0:00:40]} Bxe4 {[%emt 0:13:48]} 25. Bxe4 {[%emt 0:00:06]} Kh8 {[%emt 0:12:19]} 26. Rg1 {[%emt 0:00:40]} Nd6 {[%emt 0:00:00]} 27. Bd5 {[%emt 0:05:49]} Nxf5 {[%emt 0:00:00]} 28. Rxf5 {[%emt 0:00:14]} Rxd5 {[%emt 0:00:00]} 29. gxf6 {[%emt 0:00:12]} gxf6 {[%emt 0:00:00]} 30. Rxf6 {[%emt 0:00:11]} Rdd8 {[%emt 0:00:00]} 31. Rxf8+ {[%emt 0:07:36]} Rxf8 {[%emt 0:00:00]} 32. e4 {[%emt 0:00:07]} Qe7 {[%emt 0:00:00]} 1/2-1/2

[Event "Charlotte Fall IM-D 2023"]
[Site "Charlotte"]
[Date "2023.11.20"]
[Round "6.5"]
[White "Eckert, Doug"]
[Black "Wan, Joseph"]
[Result "0-1"]
[ECO "A22"]
[WhiteElo "2120"]
[BlackElo "2242"]
[Annotator "RC"]
[PlyCount "72"]
[EventDate "2023.11.17"]
[EventType "tourn"]
[EventCountry "USA"]
[SourceTitle "playchess.com"]
[Source "ChessBase"]
[SourceQuality "1"]
[TimeControl "5400+30"]

1. c4 {[%emt 0:04:30]} e5 {[%emt 0:00:10]} 2. Nc3 {[%emt 0:00:10]} Nf6 {[%emt 0:00:16]} 3. Nf3 {[%emt 0:00:08]} e4 {[%emt 0:00:43]} 4. Ng5 {[%emt 0:00:38]} c6 {[%emt 0:00:21]} 5. Qa4 {[%emt 0:00:50]} b5 {[%emt 0:00:39]} 6. cxb5 {[%emt 0:02:18]} d5 {[%emt 0:00:38]} 7. bxc6 {[%emt 0:09:09]} Qb6 {[%emt 0:00:36]} 8. c7+ {[%emt 0:22:39]} Nc6 {[%emt 0:02:05]} 9. e3 {[%emt 0:02:42]} Qxc7 {[%emt 0:04:45]} 10. Nb5 {[%emt 0:07:27]} Qb6 {[%emt 0:04:41]} 11. Nd4 {[%emt 0:00:16]} Bd7 {[%emt 0:01:07]} 12. Bb5 {[%emt 0:00:33]} Nxd4 {[%emt 0:09:44]} 13. Bxd7+ {[%emt 0:00:08]} Nxd7 {[%emt 0:00:03]} 14. Qxd4 {[%emt 0:03:15]} Qxd4 {[%emt 0:05:10]} 15. exd4 {[%emt 0:00:05]} Rc8 {[%emt 0:01:21]} 16. b3 {[%emt 0:01:19]} h6 {[%emt 0:10:46]} 17. Nh3 {[%emt 0:00:03]} g5 {[%emt 0:00:06]} 18. Ng1 {[%emt 0:04:49]} Bg7 {[%emt 0:04:32]} 19. Ne2 {[%emt 0:00:54]} Nc5 {[%emt 0:04:36]} 20. O-O {[%emt 0:07:24]} Nd3 {[%emt 0:01:15]} 21. f3 {[%emt 0:02:00]} Nf4 {[%emt 0:03:27]} 22. Nxf4 {[%emt 0:00:44]} Bxd4+ {[%emt 0:00:09]} 23. Kh1 {[%emt 0:00:06]} Bxa1 {[%emt 0:01:32]} 24. Nxd5 {[%emt 0:00:24]} exf3 {[%emt 0:00:21]} 25. Ba3 {[%emt 0:02:15]} Bd4 {[%emt 0:02:26]} 26. gxf3 {[%emt 0:03:06]} Kd7 {[%emt 0:02:48]} 27. f4 {[%emt 0:01:03]} g4 {[%emt 0:00:20]} 28. Ne3 {[%emt 0:05:10]} Bxe3 {[%emt 0:01:37]} 29. dxe3 {[%emt 0:00:04]} Rc2 {[%emt 0:00:11]} 30. Rd1+ {[%emt 0:00:26]} Kc8 {[%emt 0:00:17]} 31. Bd6 {[%emt 0:03:24]} f5 {[%emt 0:01:20]} 32. a4 {[%emt 0:04:54]} Rd8 {[%emt 0:00:43]} 33. Rd4 {[%emt 0:00:03]} a5 {[%emt 0:03:54]} 34. b4 {[%emt 0:03:15]} axb4 {[%emt 0:00:14]} 35. Bxb4 {[%emt 0:00:03]} Rxd4 {[%emt 0:00:06]} 36. exd4 {[%emt 0:00:03]} Rc4 {[%emt 0:00:24]} 0-1

[Event "Charlotte Fall IM-D 2023"]
[Site "Charlotte"]
[Date "2023.11.20"]
[Round "7.3"]
[White "Leiva, Gianmarco"]
[Black "Matta, Nicholas"]
[Result "1-0"]
[ECO "C42"]
[WhiteElo "2403"]
[BlackElo "2287"]
[Annotator "RC"]
[PlyCount "97"]
[EventDate "2023.11.17"]
[EventType "tourn"]
[EventCountry "USA"]
[SourceTitle "playchess.com"]
[Source "ChessBase"]
[SourceQuality "1"]
[TimeControl "5400+30"]

1. e4 {[%emt 0:06:50]} e5 {[%emt 0:00:07]} 2. Nf3 {[%emt 0:00:24]} Nf6 {[%emt 0:00:26]} 3. Nxe5 {[%emt 0:00:18]} d6 {[%emt 0:00:19]} 4. Nf3 {[%emt 0:00:12]} Nxe4 {[%emt 1:31:38]} 5. c4 {[%emt 0:00:06]} d5 {[%emt 0:00:00]} 6. Nc3 {[%emt 0:01:12]} Bc5 {[%emt 0:00:00]} 7. d4 {[%emt 0:04:18]} Bb4 {[%emt 0:00:00]} 8. Qb3 {[%emt 0:02:12]} c5 {[%emt 0:00:00]} 9. Be3 {[%emt 0:14:30]} Qa5 {[%emt 0:00:00]} 10. Rc1 {[%emt 0:00:46]} b5 {[%emt 0:00:00]} 11. cxd5 {[%emt 0:14:56]} c4 {[%emt 0:00:00]} 12. Qc2 {[%emt 0:06:35]} Bf5 {[%emt 0:00:00]} 13. Nh4 {[%emt 0:03:40]} Nxc3 {[%emt 0:00:00]} 14. Nxf5 {[%emt 0:00:02]} Nxa2+ {[%emt 0:00:00]} 15. Kd1 {[%emt 0:00:46]} Nxc1 {[%emt 0:00:00]} 16. Qe4+ {[%emt 0:01:12]} Kd7 {[%emt 0:00:00]} 17. d6 {[%emt 0:01:23]} Nc6 {[%emt 0:00:00]} 18. d5 {[%emt 0:01:32]} Rac8 {[%emt 0:00:00]} 19. dxc6+ {[%emt 0:14:53]} Rxc6 {[%emt 0:00:00]} 20. Qe7+ {[%emt 0:01:51]} Kc8 {[%emt 0:00:00]} 21. d7+ {[%emt 0:00:10]} Kb8 {[%emt 0:00:00]} 22. Bf4+ {[%emt 0:01:10]} Ka8 {[%emt 0:00:00]} 23. Qe4 {[%emt 0:01:16]} Kb7 {[%emt 0:00:00]} 24. Nd4 {[%emt 0:01:48]} Qb6 {[%emt 0:00:00]} 25. Kxc1 {[%emt 0:05:35]} Rd8 {[%emt 0:00:00]} 26. g4 {[%emt 0:01:32]} Rxd7 {[%emt 0:00:00]} 27. Nxc6 {[%emt 0:00:38]} Qxc6 {[%emt 0:00:00]} 28. Bg2 {[%emt 0:00:18]} Qxe4 {[%emt 0:00:00]} 29. Bxe4+ {[%emt 0:00:05]} Ka6 {[%emt 0:00:00]} 30. Kc2 {[%emt 0:03:02]} Bc5 {[%emt 0:00:00]} 31. f3 {[%emt 0:00:13]} b4 {[%emt 0:00:00]} 32. Rd1 {[%emt 0:00:45]} b3+ {[%emt 0:01:51]} 33. Kc1 {[%emt 0:00:02]} Rxd1+ {[%emt 0:00:10]} 34. Kxd1 {[%emt 0:00:02]} Bd4 {[%emt 0:00:15]} 35. Kc1 {[%emt 0:00:26]} Kb5 {[%emt 0:01:56]} 36. Bxh7 {[%emt 0:02:32]} a5 {[%emt 0:00:42]} 37. Bg8 {[%emt 0:00:13]} f6 {[%emt 0:01:24]} 38. h4 {[%emt 0:01:45]} a4 {[%emt 0:02:34]} 39. Bd6 {[%emt 0:07:17]} c3 {[%emt 0:07:57]} 40. bxc3 {[%emt 0:00:35]} Bxc3 {[%emt 0:00:02]} 41. Bf8 {[%emt 0:01:22]} f5 {[%emt 0:00:15]} 42. h5 {[%emt 0:01:59]} fxg4 {[%emt 0:00:16]} 43. fxg4 {[%emt 0:00:01]} Bf6 {[%emt 0:00:08]} 44. Kb1 {[%emt 0:00:19]} Kc6 {[%emt 0:00:13]} 45. g5 {[%emt 0:00:15]} Be5 {[%emt 0:02:08]} 46. h6 {[%emt 0:00:21]} gxh6 {[%emt 0:00:02]} 47. gxh6 {[%emt 0:00:06]} Bf4 {[%emt 0:00:28]} 48. h7 {[%emt 0:00:47]} Be5 {[%emt 0:00:06]} 49. Ba3 {[%emt 0:00:06]} 1-0

[Event "Charlotte Fall IM-D 2023"]
[Site "Charlotte"]
[Date "2023.11.20"]
[Round "7.4"]
[White "Ansh M Shah"]
[Black "Karthik, Advaith"]
[Result "1/2-1/2"]
[ECO "E05"]
[WhiteElo "2169"]
[BlackElo "2156"]
[Annotator "RC"]
[PlyCount "177"]
[EventDate "2023.11.17"]
[EventType "tourn"]
[EventCountry "USA"]
[SourceTitle "playchess.com"]
[Source "ChessBase"]
[SourceQuality "1"]
[TimeControl "5400+30"]

1. d4 {[%emt 0:02:30]} Nf6 {[%emt 0:09:16]} 2. c4 {[%emt 0:00:08]} e6 {[%emt 0:00:06]} 3. g3 {[%emt 0:00:19]} d5 {[%emt 0:00:12]} 4. Bg2 {[%emt 0:00:08]} Be7 {[%emt 0:00:05]} 5. Nf3 {[%emt 0:00:11]} O-O {[%emt 0:00:05]} 6. O-O {[%emt 0:00:08]} dxc4 {[%emt 0:00:08]} 7. Qc2 {[%emt 0:00:07]} a6 {[%emt 0:00:04]} 8. a4 {[%emt 0:00:09]} Bd7 {[%emt 0:00:08]} 9. Qxc4 {[%emt 0:00:08]} Bc6 {[%emt 0:00:05]} 10. Bf4 {[%emt 0:00:09]} Bd6 {[%emt 0:00:28]} 11. Nc3 {[%emt 0:00:26]} a5 {[%emt 0:01:36]} 12. Ne5 {[%emt 0:02:43]} Bxg2 {[%emt 0:00:05]} 13. Kxg2 {[%emt 0:00:10]} c6 {[%emt 0:03:18]} 14. Rfd1 {[%emt 0:10:31]} Nd5 {[%emt 0:09:47]} 15. Ne4 {[%emt 0:03:59]} Na6 {[%emt 0:06:44]} 16. Bd2 {[%emt 0:07:05]} Bc7 {[%emt 0:04:10]} 17. Qc2 {[%emt 0:25:18]} Ndb4 {[%emt 0:01:51]} 18. Qb1 {[%emt 0:01:03]} Qd5 {[%emt 0:07:19]} 19. Nf3 {[%emt 0:00:41]} h6 {[%emt 0:06:30]} 20. Bxh6 {[%emt 0:01:44]} Qc4 {[%emt 0:00:25]} 21. b3 {[%emt 0:34:05]} Qc2 {[%emt 0:02:02]} 22. Qxc2 {[%emt 0:01:35]} Nxc2 {[%emt 0:00:01]} 23. Rac1 {[%emt 0:00:01]} Nxd4 {[%emt 0:00:29]} 24. Bxg7 {[%emt 0:01:25]} Nxe2 {[%emt 0:00:32]} 25. Bxf8 {[%emt 0:00:12]} Nxc1 {[%emt 0:00:05]} 26. Ba3 {[%emt 0:02:39]} Nxb3 {[%emt 0:00:54]} 27. Rb1 {[%emt 0:03:05]} f5 {[%emt 0:00:04]} 28. Nf6+ {[%emt 0:02:16]} Kf7 {[%emt 0:00:01]} 29. Rxb3 {[%emt 0:00:49]} Kxf6 {[%emt 0:00:02]} 30. Rxb7 {[%emt 0:00:01]} e5 {[%emt 0:01:06]} 31. h4 {[%emt 0:00:43]} c5 {[%emt 0:11:41]} 32. Bxc5 {[%emt 0:00:28]} Nxc5 {[%emt 0:00:08]} 33. Rxc7 {[%emt 0:00:01]} Nxa4 {[%emt 0:00:11]} 34. Rc6+ {[%emt 0:00:22]} Ke7 {[%emt 0:00:06]} 35. Nxe5 {[%emt 0:00:23]} Nb2 {[%emt 0:00:17]} 36. Rc2 {[%emt 0:01:30]} Ke6 {[%emt 0:00:11]} 37. f4 {[%emt 0:01:05]} Nd1 {[%emt 0:01:04]} 38. Kf3 {[%emt 0:00:26]} a4 {[%emt 0:00:01]} 39. Nc4 {[%emt 0:00:41]} Rc8 {[%emt 0:03:02]} 40. Ke2 {[%emt 0:00:24]} Nb2 {[%emt 0:00:04]} 41. Rxb2 {[%emt 0:00:06]} Rxc4 {[%emt 0:00:01]} 42. Kd3 {[%emt 0:00:22]} Re4 {[%emt 0:00:40]} 43. Rb6+ {[%emt 0:00:02]} Kf7 {[%emt 0:00:16]} 44. Rb5 {[%emt 0:00:36]} Kf6 {[%emt 0:00:08]} 45. h5 {[%emt 0:01:11]} Re1 {[%emt 0:00:48]} 46. Ra5 {[%emt 0:00:27]} Rg1 {[%emt 0:00:11]} 47. Rxa4 {[%emt 0:00:26]} Rxg3+ {[%emt 0:00:05]} 48. Kd4 {[%emt 0:00:23]} Rh3 {[%emt 0:00:02]} 49. Ra6+ {[%emt 0:00:28]} Kg7 {[%emt 0:00:06]} 50. Rg6+ {[%emt 0:00:52]} Kf7 {[%emt 0:00:05]} 51. Rg5 {[%emt 0:00:35]} Kf6 {[%emt 0:00:03]} 52. Rg6+ {[%emt 0:00:36]} Kf7 {[%emt 0:00:04]} 53. Rh6 {[%emt 0:00:29]} Kg7 {[%emt 0:00:01]} 54. Rb6 {[%emt 0:00:17]} Rxh5 {[%emt 0:00:05]} 55. Ke5 {[%emt 0:00:02]} Kf7 {[%emt 0:01:13]} 56. Rb7+ {[%emt 0:00:05]} Kg6 {[%emt 0:00:11]} 57. Ra7 {[%emt 0:00:45]} Rh1 {[%emt 0:00:31]} 58. Ra6+ {[%emt 0:00:04]} Kf7 {[%emt 0:00:04]} 59. Rf6+ {[%emt 0:00:27]} Ke7 {[%emt 0:00:35]} 60. Rg6 {[%emt 0:00:33]} Ra1 {[%emt 0:01:09]} 61. Rg7+ {[%emt 0:00:24]} Kf8 {[%emt 0:00:05]} 62. Rb7 {[%emt 0:00:32]} Ra5+ {[%emt 0:02:34]} 63. Kf6 {[%emt 0:00:03]} Ra6+ {[%emt 0:00:03]} 64. Kg5 {[%emt 0:00:07]} Ra5 {[%emt 0:00:18]} 65. Rh7 {[%emt 0:00:41]} Kg8 {[%emt 0:00:31]} 66. Re7 {[%emt 0:01:06]} Kf8 {[%emt 0:00:10]} 67. Rd7 {[%emt 0:00:48]} Ke8 {[%emt 0:00:13]} 68. Rb7 {[%emt 0:00:15]} Kf8 {[%emt 0:00:04]} 69. Kg6 {[%emt 0:00:30]} Ra6+ {[%emt 0:00:04]} 70. Kxf5 {[%emt 0:00:07]} Ra5+ {[%emt 0:00:09]} 71. Kf6 {[%emt 0:00:37]} Ra6+ {[%emt 0:00:03]} 72. Kg5 {[%emt 0:00:05]} Ra5+ {[%emt 0:00:38]} 73. f5 {[%emt 0:00:02]} Ra6 {[%emt 0:00:06]} 74. Rc7 {[%emt 0:00:52]} Rb6 {[%emt 0:00:07]} 75. Rh7 {[%emt 0:00:34]} Kg8 {[%emt 0:00:20]} 76. Rh2 {[%emt 0:00:26]} Kf7 {[%emt 0:00:31]} 77. Ra2 {[%emt 0:00:15]} Kg7 {[%emt 0:00:32]} 78. Ra8 {[%emt 0:00:49]} Kf7 {[%emt 0:00:18]} 79. Rc8 {[%emt 0:00:35]} Ra6 {[%emt 0:00:10]} 80. Rc5 {[%emt 0:00:28]} Kg7 {[%emt 0:00:31]} 81. Rc7+ {[%emt 0:02:11]} Kf8 {[%emt 0:00:16]} 82. f6 {[%emt 0:00:01]} Ra1 {[%emt 0:00:08]} 83. Rc4 {[%emt 0:01:58]} Rg1+ {[%emt 0:00:10]} 84. Rg4 {[%emt 0:00:00]} Rxg4+ {[%emt 0:00:07]} 85. Kxg4 {[%emt 0:00:00]} Kf7 {[%emt 0:00:08]} 86. Kf5 {[%emt 0:00:00]} Kf8 {[%emt 0:00:05]} 87. Ke6 {[%emt 0:00:00]} Ke8 {[%emt 0:00:02]} 88. f7+ {[%emt 0:00:00]} Kf8 {[%emt 0:00:03]} 89. Kf6 {[%emt 0:00:00]} 1/2-1/2

[Event "Charlotte Fall IM-D 2023"]
[Site "Charlotte"]
[Date "2023.11.20"]
[Round "7.5"]
[White "Girsh, Daniel"]
[Black "Dukic, Zachary"]
[Result "0-1"]
[ECO "E97"]
[WhiteElo "2221"]
[BlackElo "2233"]
[Annotator "RC"]
[PlyCount "71"]
[EventDate "2023.11.17"]
[EventType "tourn"]
[EventCountry "USA"]
[SourceTitle "playchess.com"]
[Source "ChessBase"]
[SourceQuality "1"]
[TimeControl "5400+30"]

1. d4 {[%emt 0:00:30]} Nf6 {[%emt 0:00:13]} 2. c4 {[%emt 0:00:06]} g6 {[%emt 0:00:18]} 3. Nc3 {[%emt 0:00:07]} Bg7 {[%emt 0:00:05]} 4. e4 {[%emt 0:00:29]} d6 {[%emt 0:00:05]} 5. Be2 {[%emt 0:00:23]} O-O {[%emt 0:00:09]} 6. Nf3 {[%emt 0:00:03]} e5 {[%emt 0:00:07]} 7. O-O {[%emt 0:00:14]} Nc6 {[%emt 0:00:06]} 8. dxe5 {[%emt 0:03:32]} dxe5 {[%emt 0:00:07]} 9. Bg5 {[%emt 0:04:34]} Bg4 {[%emt 0:00:09]} 10. Qxd8 {[%emt 0:04:27]} Nxd8 {[%emt 0:00:47]} 11. Bxf6 {[%emt 0:01:44]} Bxf3 {[%emt 0:05:47]} 12. Bxf3 {[%emt 0:02:45]} Bxf6 {[%emt 0:00:11]} 13. Nd5 {[%emt 0:00:03]} Bg5 {[%emt 0:02:37]} 14. Nxc7 {[%emt 0:23:36]} Rc8 {[%emt 0:00:16]} 15. Nb5 {[%emt 0:00:25]} a6 {[%emt 0:15:11]} 16. Nd6 {[%emt 0:02:12]} Rc6 {[%emt 0:02:16]} 17. Rfd1 {[%emt 0:01:47]} b6 {[%emt 0:07:36]} 18. Bg4 {[%emt 0:24:34]} Be7 {[%emt 0:07:45]} 19. Nc8 {[%emt 0:03:19]} Bc5 {[%emt 0:00:43]} 20. b4 {[%emt 0:03:12]} Bxb4 {[%emt 0:00:51]} 21. Bd7 {[%emt 0:00:04]} Rf6 {[%emt 0:02:31]} 22. Kf1 {[%emt 0:04:43]} Bc5 {[%emt 0:11:56]} 23. f3 {[%emt 0:01:12]} Nc6 {[%emt 0:03:24]} 24. Rd5 {[%emt 0:04:55]} Nb4 {[%emt 0:14:18]} 25. Rd2 {[%emt 0:00:10]} Rd8 {[%emt 0:00:31]} 26. Rad1 {[%emt 0:02:54]} Bd4 {[%emt 0:01:11]} 27. Bh3 {[%emt 0:02:40]} Nc6 {[%emt 0:02:30]} 28. Rb1 {[%emt 0:01:07]} Kf8 {[%emt 0:02:41]} 29. Ke2 {[%emt 0:04:03]} Na5 {[%emt 0:03:12]} 30. Rc2 {[%emt 0:01:47]} Rc6 {[%emt 0:00:33]} 31. c5 {[%emt 0:00:57]} Bxc5 {[%emt 0:00:53]} 32. Kf1 {[%emt 0:03:21]} b5 {[%emt 0:02:20]} 33. a4 {[%emt 0:00:11]} Nc4 {[%emt 0:00:13]} 34. axb5 {[%emt 0:00:21]} axb5 {[%emt 0:00:01]} 35. Ke2 {[%emt 0:00:32]} Na3 {[%emt 0:00:08]} 36. Na7 {[%emt 0:00:17]} 0-1

[Event "Charlotte Fall IM-D 2023"]
[Site "Charlotte"]
[Date "2023.11.21"]
[Round "8.1"]
[White "Marek, Matyas"]
[Black "Dukic, Zachary"]
[Result "1-0"]
[ECO "B31"]
[WhiteElo "2343"]
[BlackElo "2233"]
[Annotator "RC"]
[PlyCount "65"]
[EventDate "2023.11.17"]
[EventType "tourn"]
[EventCountry "USA"]
[SourceTitle "playchess.com"]
[Source "ChessBase"]
[SourceQuality "1"]
[TimeControl "5400+30"]

1. e4 {[%emt 0:00:04]} c5 {[%emt 0:00:06]} 2. Nf3 {[%emt 0:00:02]} Nc6 {[%emt 0:00:06]} 3. Bb5 {[%emt 0:00:04]} g6 {[%emt 0:00:07]} 4. O-O {[%emt 0:00:05]} Bg7 {[%emt 0:00:05]} 5. Re1 {[%emt 0:00:04]} e5 {[%emt 0:00:06]} 6. Bxc6 {[%emt 0:00:04]} dxc6 {[%emt 0:00:06]} 7. a4 {[%emt 0:00:09]} Qe7 {[%emt 0:01:17]} 8. Na3 {[%emt 0:00:08]} Nh6 {[%emt 0:01:19]} 9. Nc4 {[%emt 0:01:25]} b6 {[%emt 0:00:13]} 10. d3 {[%emt 0:02:49]} f6 {[%emt 0:00:16]} 11. h3 {[%emt 0:01:24]} O-O {[%emt 0:00:32]} 12. Be3 {[%emt 0:00:14]} Nf7 {[%emt 0:00:12]} 13. Nfd2 {[%emt 0:07:37]} Nd8 {[%emt 0:03:20]} 14. f4 {[%emt 0:02:57]} Ne6 {[%emt 0:05:10]} 15. f5 {[%emt 0:05:45]} gxf5 {[%emt 0:06:25]} 16. exf5 {[%emt 0:00:06]} Nc7 {[%emt 0:00:08]} 17. Qf3 {[%emt 0:07:34]} Nd5 {[%emt 0:03:27]} 18. Bf2 {[%emt 0:04:29]} Qd7 {[%emt 0:04:23]} 19. g4 {[%emt 0:00:15]} h5 {[%emt 0:00:43]} 20. Ne4 {[%emt 0:02:22]} Bh6 {[%emt 0:02:20]} 21. Bh4 {[%emt 0:02:37]} Qh7 {[%emt 0:03:51]} 22. Kg2 {[%emt 0:05:18]} Bf4 {[%emt 0:06:26]} 23. Rh1 {[%emt 0:03:21]} Ba6 {[%emt 0:06:06]} 24. Rae1 {[%emt 0:03:58]} Rad8 {[%emt 0:08:57]} 25. Kf2 {[%emt 0:12:42]} Rd7 {[%emt 0:03:51]} 26. Ncd6 {[%emt 0:01:58]} Qe7 {[%emt 0:02:09]} 27. g5 {[%emt 0:18:08]} Rxd6 {[%emt 0:14:36]} 28. gxf6 {[%emt 0:00:40]} Nxf6 {[%emt 0:05:05]} 29. Rhg1+ {[%emt 0:02:11]} Kh7 {[%emt 0:00:43]} 30. Qxf4 {[%emt 0:01:11]} exf4 {[%emt 0:06:31]} 31. Ng5+ {[%emt 0:02:58]} Kh6 {[%emt 0:02:59]} 32. Rxe7 {[%emt 0:00:10]} Rd7 {[%emt 0:00:17]} 33. Re6 {[%emt 0:00:28]} 1-0